Cogmind - Beta 15 @@@ ROGUE MODE // 2025.10.09 @ 20:59:26 Player: DietSnapple Result: Self-destructed Performance ------------- Evolutions (2) 1000 Regions Visited (5) 1000 Robots Destroyed (28) 140 Value Destroyed (600) 600 Prototype IDs (2) 40 Alien Tech Used (0) 0 Bonus (0) 0 TOTAL SCORE: 2780 Bonus ------- None Cogmind --------- Core Integrity 21/550 Matter 266/300 Energy 100/100 System Corruption 5% Temperature Cool (0) Movement Core (100) Ox1 Location -8/Materials Parts ------- > --- POWER (1) -------- (None) > --- PROPULSION (3) --- (None) > --- UTILITY (5) ------ Machine Analyzer Improved Signal Interpreter > --- WEAPON (2) ------- Faulty Advanced EMP Blaster > --- INVENTORY (5) ---- Targeting Computer ECM Suite Peak State ------------ > --- POWER ------------ (None) > --- PROPULSION ------- Wheel > --- UTILITY ---------- Large Storage Unit Experimental Sensor Array Light Armor Plating Light Armor Plating Improved Light Armor Plating > --- WEAPON ----------- Assault Rifle > --- INVENTORY -------- Sensor Array Targeting Computer ECM Suite Datajack Proton Bomb Trap Proton Bomb Trap Proton Bomb Trap Proton Bomb Trap [Rating: 17] Favorites ----------- Power Ion Engine Engine Ion Engine Propulsion Wheel Treads Light Treads Wheel Wheel Flight Unit Flight Unit Utility Light Armor Plating Device Experimental Sensor Array Storage Large Storage Unit Processor Improved Signal Interpreter Protection Light Armor Plating Weapon Assault Rifle Energy Gun Medium Laser Ballistic Gun Assault Rifle Launcher Advanced EMP Blaster Build | -11 -10 -10 -10 -9 -8 ------- Run | Yrd Mat Min Exi Min Mat Slots Evolved 4 | . . . . . 4 Power . | . . . . . . Propulsion 1 | . . . . . 1 Utility 3 | . . . . . 3 Weapon . | . . . . . . Parts Attached 35 | 7 12 2 . 5 9 Power 2 | 1 . 1 . . . Engine 2 | 1 . 1 . . . Core . | . . . . . . Reactor . | . . . . . . Propulsion 6 | 2 2 . . 1 1 Treads 2 | 2 . . . . . Leg . | . . . . . . Wheel 3 | . 2 . . 1 . Hover . | . . . . . . Flight 1 | . . . . . 1 Utility 14 | 1 6 1 . . 6 Device 1 | . . 1 . . . Storage 4 | 1 3 . . . . Processor 2 | . . . . . 2 Hackware . | . . . . . . Protection 7 | . 3 . . . 4 Artifact . | . . . . . . Weapon 13 | 3 4 . . 4 2 Energy Gun 5 | 2 . . . 3 . Energy Cannon . | . . . . . . Ballistic Gun 7 | 1 4 . . 1 1 Ballistic Cannon . | . . . . . . Launcher 1 | . . . . . 1 Special Weapon . | . . . . . . Impact Weapon . | . . . . . . Slashing Weapon . | . . . . . . Piercing Weapon . | . . . . . . Special Melee Weapon . | . . . . . . Unidentified Prototypes 2 | . . 1 . . 1 Parts Lost 18 | . 3 . . 8 7 Power 1 | . . . . 1 . Propulsion 4 | . 1 . . 2 1 Utility 5 | . 1 . . . 4 Weapon 8 | . 1 . . 5 2 Highest Loss Streak 8 | . 1 . . 8 7 To Critical Strikes . | . . . . . . Average Backups 8 | 2 9 13 10 9 3 Power . | . 1 . . . . Propulsion . | 1 . . . . . Utility 4 | . 4 5 5 5 2 Weapon 3 | . 3 5 4 3 . Tool/Special . | . . . . . . Unused Backups 9 | . 2 3 . . 4 Power . | . . . . . . Propulsion 2 | . 2 . . . . Utility 4 | . . 1 . . 3 Weapon 2 | . . 2 . . . Tool/Special 1 | . . . . . 1 Average Slot Usage (%) 92 | . 98 100 100 90 42 Engine 12 | . 14 14 14 10 . Treads 11 | . 19 . . . . Wheel 13 | . 8 28 28 24 6 Device 3 | . . 1 14 14 4 Storage 13 | . 14 14 14 14 6 Protection 11 | . 13 12 . . 16 Ballistic Gun 25 | . 27 28 28 24 5 Peak Build Rating 17 | 6 8 16 16 16 17 Average Rating 8 | 4 7 8 16 15 10 On Entrance 9 | . 6 8 16 16 13 Naked Turns 60 | . . . . . 60 Heaviest Build 92 | 13 92 32 30 30 32 Greatest Support 40 | 40 40 20 20 20 10 Greatest Overweight (x) 7 | . 5 1 1 7 3 Average Overweight (x) 1 | . 1 1 1 1 1 Largest Inventory Capacity 25 | 8 25 15 15 15 15 Average Capacity 16 | 6 17 15 15 15 11 Most Carried 15 | 4 14 15 14 14 10 Average Carried 9 | 2 9 14 14 13 6 Final Capacity 15 | 8 15 15 15 15 5 Final Carried 14 | 4 14 14 14 10 2 Class Distribution -------------------- 100% | Mutant Dominant Class ---------------- Mutant | -10/Materials Mutant | -10/Mines Mutant | -10/Exiles Mutant | -9/Mines Mutant | -8/Materials Resources | -11 -10 -10 -10 -9 -8 ----------- Run | Yrd Mat Min Exi Min Mat Matter Collected 958 | 227 625 . . 47 59 Remotely . | . . . . . . Salvage Created 826 | . 715 . . . 111 Parts 57 | . 50 . . . 7 Haulers Intercepted 1 | . 1 . . . . Recyclers Shooed 1 | . 1 . . . . Parts Field Recycled . | . . . . . . Retrieved Matter . | . . . . . . Parts Self-Destructed . | . . . . . . Prevented . | . . . . . . Kills | -11 -10 -10 -10 -9 -8 ------- Run | Yrd Mat Min Exi Min Mat Combat Hostiles Destroyed 24 | . 20 . . . 4 Guns 24 | . 20 . . . 4 Classes Destroyed 7 | . 6 . . . 1 Worker 1 | . 1 . . . . Builder 1 | . 1 . . . . Hauler 1 | . 1 . . . . Operator 1 | . 1 . . . . Swarmer 11 | . 8 . . . 3 Grunt 12 | . 12 . . . . Sentry 1 | . . . . . 1 Best Kill Streak 4 | . 4 . . . 3 Combat Bots Only 3 | . 3 . . . 3 Max Kills in Single Turn 2 | . 2 . . . 1 Gunslinging 1 | . 1 . . . . Exploded . | . . . . . . Melee . | . . . . . . Uniques/NPCs Destroyed . | . . . . . . Combat | -11 -10 -10 -10 -9 -8 -------- Run | Yrd Mat Min Exi Min Mat Hostile Shots Fired 259 | . 101 . . 17 141 Missed 68 | . 25 . . 1 42 Hits 191 | . 76 . . 16 99 Projectile 191 | . 76 . . 16 99 AOE 16 | . . . . 16 . Critical Strikes 1 | . . . . . 1 Damage Taken 2532 | . 776 . . 607 1149 Core 686 | . 68 . . 89 529 Absorbed by Shields . | . . . . . . Core Remaining (%) 68 | 100 . . . 37 . Volleys Fired 113 | . 81 . . 7 25 Largest 2 | . 2 . . 2 1 Hottest 80 | . 40 . . 80 20 Shots Fired 196 | . 159 . . 12 25 Gun 196 | . 159 . . 12 25 Cannon . | . . . . . . Launcher . | . . . . . . Special . | . . . . . . Kinetic 193 | . 159 . . 9 25 Thermal . | . . . . . . Explosive . | . . . . . . Electromagnetic 3 | . . . . 3 . Robot Hit Streak 14 | . 14 . . 6 8 Robot Miss Streak 3 | . 3 . . 2 3 Penetration Max . | . . . . . . Secondary Targets 2 | . 2 . . . . Max Gunslinging Chain 1 | . 1 . . . . Shots Hit Robots 134 | . 108 . . 8 18 Core Hits 49 | . 41 . . 2 6 Critical Kills . | . . . . . . Critical Parts Destroyed . | . . . . . . Critical Strikes . | . . . . . . Melee Attacks . | . . . . . . Impact . | . . . . . . Slashing . | . . . . . . Piercing . | . . . . . . Sneak Attacks . | . . . . . . Combat Hostiles . | . . . . . . Follow-up Attacks . | . . . . . . Damage Inflicted 1700 | . 1369 . . 98 233 Guns 1664 | . 1369 . . 98 197 Cannons . | . . . . . . Explosions . | . . . . . . Melee . | . . . . . . Ramming 36 | . . . . . 36 Kinetic 1631 | . 1369 . . 65 197 Thermal . | . . . . . . Explosive . | . . . . . . Electromagnetic 33 | . . . . 33 . Impact . | . . . . . . Slashing . | . . . . . . Piercing . | . . . . . . Highest Corruption 5 | . . . . . 5 Average Corruption 5 | . . . . . 5 Corruption Purged . | . . . . . . Corruption Blocked . | . . . . . . Overload Shots . | . . . . . . Overflow Damage . | . . . . . . Projectiles . | . . . . . . Explosions . | . . . . . . Melee . | . . . . . . Knockbacks . | . . . . . . Impact . | . . . . . . Kinetic . | . . . . . . Secondary . | . . . . . . Self-Inflicted Damage 16 | . . . . . 16 Shots . | . . . . . . Rammed 8 | . . . . . 8 Targets Rammed 8 | . . . . . 8 Kicked . | . . . . . . Crushed . | . . . . . . Highest Temperature 7 | . 7 . . 3 3 Average Temperature 2 | . 2 . . 2 2 Received Heat Transfer 531 | . 297 . . . 234 Siege Activations . | . . . . . . Martial Activations . | . . . . . . Shielding Activations . | . . . . . . Robots Disrupted . | . . . . . . Combat Hostiles . | . . . . . . Robots Corrupted . | . . . . . . Combat Hostiles . | . . . . . . Parts Fried . | . . . . . . Impact Corruptions . | . . . . . . Robots Melted . | . . . . . . Combat Hostiles . | . . . . . . Parts Melted . | . . . . . . Heat Transferred . | . . . . . . Parts Sabotaged . | . . . . . . Parts Stolen . | . . . . . . Parts Stripped . | . . . . . . Power Chain Reactions . | . . . . . . Alert | -11 -10 -10 -10 -9 -8 ------- Run | Yrd Mat Min Exi Min Mat Maximum Alert Level . | . . . . . . Low Security (%) 100 | 100 100 100 . 100 100 Level 1 . | . . . . . . Level 2 . | . . . . . . Level 3 . | . . . . . . Level 4 . | . . . . . . Level 5 . | . . . . . . High Security . | . . . . . . Max Security . | . . . . . . Peak Influence 116 | . 116 29 . . 80 Initial 29 | . . 29 . . . Average 32 | . 46 3 . . 16 Influence Increases 743 | . 518 . . . 225 Destroy 0b10 Robot/C 480 | . 400 . . . 80 Destroy 0b10 Robot/NC 20 | . 20 . . . . Destroy Leader 82 | . 62 . . . 20 Trap Triggered on 0b10 30 | . . . . . 30 Successful Hack 22 | . 17 . . . 5 Destroy Structure 4 | . 4 . . . . Lose Combat Pursuer 105 | . 15 . . . 90 Influence Decreases 673 | . 442 76 . . 155 Entered New Map 47 | . . 47 . . . Time Decay 541 | . 412 29 . . 100 Lost Part 85 | . 30 . . . 55 Squads Dispatched 6 | . 3 . . . 3 Investigation 3 | . 2 . . . 1 Extermination . | . . . . . . Reinforcement 3 | . 1 . . . 2 Assault . | . . . . . . Garrison . | . . . . . . Intercept . | . . . . . . Searches Triggered . | . . . . . . Construction Impeded . | . . . . . . Haulers Reinforced . | . . . . . . Active Scanning Responses . | . . . . . . Cargo Convoy Interrupts . | . . . . . . Stealth | -11 -10 -10 -10 -9 -8 --------- Run | Yrd Mat Min Exi Min Mat Distress Signals 4 | . 3 . . . 1 Communications Jammed . | . . . . . . Distress Signals . | . . . . . . Times Spotted 59 | . 36 . . 2 21 Peak Tracking Total 10 | . 5 . . 2 10 Tactical Retreats 5 | . 1 . . . 4 Traps | -11 -10 -10 -10 -9 -8 ------- Run | Yrd Mat Min Exi Min Mat Traps Triggered 2 | . 2 . . . . Indirectly . | . . . . . . Trap Hack Attempts . | . . . . . . Triggered . | . . . . . . Disarmed . | . . . . . . Reprogrammed . | . . . . . . Reused 3 | . . . . . 3 Traps Extracted . | . . . . . . Installed 4 | . . . . . 4 Triggered 3 | . . . . . 3 Most Traps Carried 4 | . . 4 4 4 4 Machines | -11 -10 -10 -10 -9 -8 ---------- Run | Yrd Mat Min Exi Min Mat Machines Disabled . | . . . . . . Max in Single Turn . | . . . . . . Machines Repaired . | . . . . . . Machines Dismantled . | . . . . . . Machines Sabotaged . | . . . . . . Overloaded Fab Kills . | . . . . . . Hacking | -11 -10 -10 -10 -9 -8 --------- Run | Yrd Mat Min Exi Min Mat Machines Accessed 7 | . 6 . . . 1 Terminals 6 | . 5 . . . 1 Fabricators . | . . . . . . Repair Stations . | . . . . . . Recycling Units 1 | . 1 . . . . Scanalyzers . | . . . . . . Garrison Access . | . . . . . . Total Hacks 15 | . 12 . . . 3 Successful 8 | . 7 . . . 1 Failed 7 | . 5 . . . 2 Catastrophic . | . . . . . . Database Lockouts . | . . . . . . Manual 13 | . 10 . . . 3 Terminals 13 | . 10 . . . 3 Fabricators . | . . . . . . Repair Stations . | . . . . . . Recycling Units 2 | . 2 . . . . Scanalyzers . | . . . . . . Garrison Access . | . . . . . . Terminal Hacks 2 | . 2 . . . . Hauler Manifests 1 | . 1 . . . . Registered Components 1 | . 1 . . . . Fabricator Hacks . | . . . . . . Repair Station Hacks . | . . . . . . Recycling Unit Hacks 1 | . 1 . . . . Report Inventory 1 | . 1 . . . . Scanalyzer . | . . . . . . Garrison Access Hacks . | . . . . . . Unauthorized Hacks 5 | . 4 . . . 1 Terminals 5 | . 4 . . . 1 Botnet 4 | . 3 . . . 1 Operators 1 | . 1 . . . . Fabricators . | . . . . . . Repair Stations . | . . . . . . Recycling Units . | . . . . . . Scanalyzers . | . . . . . . Garrison Access . | . . . . . . Data Cores Recovered . | . . . . . . Used . | . . . . . . Hacking Detections 6 | . 5 . . . 1 Full Trace Events . | . . . . . . Feedback Events . | . . . . . . Feedback Blocked . | . . . . . . Robot Schematics Acquired . | . . . . . . Robots Built . | . . . . . . Authchips . | . . . . . . Time . | . . . . . . Total Robot Build Rating . | . . . . . . Part Schematics Acquired . | . . . . . . Parts Built . | . . . . . . Authchips . | . . . . . . Time . | . . . . . . Total Part Build Rating . | . . . . . . Parts Repaired . | . . . . . . Time . | . . . . . . Parts Recycled . | . . . . . . Recycled Matter . | . . . . . . Retrieved Matter . | . . . . . . Retrieved Components . | . . . . . . Parts Scanalyzed . | . . . . . . Part Schematics Acquired . | . . . . . . Parts Damaged . | . . . . . . Bothacking | -11 -10 -10 -10 -9 -8 ------------ Run | Yrd Mat Min Exi Min Mat Used RIF Installer . | . . . . . . Robots Hacked . | . . . . . . Non-combat . | . . . . . . Combat . | . . . . . . Robot Hacks Applied . | . . . . . . Relay Couplers Released . | . . . . . . Fabnet Peak Effective % . | . . . . . . Robots Rewired . | . . . . . . Allies Hacked . | . . . . . . Hacks Repelled . | . . . . . . Allies | -11 -10 -10 -10 -9 -8 -------- Run | Yrd Mat Min Exi Min Mat Total Allies . | . . . . . . Largest Group . | . . . . . . Highest-Rated Group . | . . . . . . Highest-Rated Ally . | . . . . . . Total Orders . | . . . . . . Ally Attacks . | . . . . . . Total Damage . | . . . . . . Kills . | . . . . . . Allies Corrupted . | . . . . . . Allies Melted . | . . . . . . Intel | -11 -10 -10 -10 -9 -8 ------- Run | Yrd Mat Min Exi Min Mat Active Infowar (turns) 730 | . . 32 297 207 194 Sensors 696 | . . 32 297 207 160 Machine Analysis 34 | . . . . . 34 Robot Analysis Total . | . . . . . . Derelict Logs Recovered 4 | . . 1 . 3 . Drone Launches . | . . . . . . Drone Recoveries . | . . . . . . Exploration | -11 -10 -10 -10 -9 -8 ------------- Run | Yrd Mat Min Exi Min Mat Turns Passed 3063 | 129 1807 323 297 207 300 Spaces Moved 1976 | 75 861 331 313 177 219 Core 134 | 4 . . . 3 127 Treads 530 | 71 459 . . . . Legs . | . . . . . . Wheels 1312 | . 402 331 313 174 92 Hover . | . . . . . . Flight . | . . . . . . Fastest Speed 50 | 50 95 95 95 95 50 Average Speed 129 | 154 169 95 95 101 84 Slowest Speed 400 | 160 320 95 95 400 125 Overloaded Moves . | . . . . . . Propulsion Burnouts . | . . . . . . Robots Hopped . | . . . . . . Potential Cave-ins . | . . . . . . Cave-ins Triggered . | . . . . . . Exploration Rate (%) 50 | 6 97 64 75 29 29 Regions Visited 5 Branch Regions 3 Pre-discovered Areas . | . . . . . . Known Exits Taken 1 | . . 1 . . . Unknown Exits Taken 4 | 1 1 . 1 1 . Scrap Searched 1 | . . . . 1 . Spaces Dug . | . . . . . . Terrain Destroyed . | . . . . . . Melee . | . . . . . . Projectile . | . . . . . . AOE . | . . . . . . Terrain Rammed . | . . . . . . Walls Destroyed . | . . . . . . Machines Disabled . | . . . . . . Actions | -11 -10 -10 -10 -9 -8 --------- Run | Yrd Mat Min Exi Min Mat Total 2288 | 85 1050 340 312 192 309 Wait 116 | . 72 . . 4 40 Move 1971 | 74 860 330 312 176 219 Hop . | . . . . . . Pick Up 26 | 4 17 4 . . 1 Fast Attach 15 | 6 2 . . 1 6 Attach 9 | . 2 . . 4 3 Detach . | . . . . . . Swap 11 | 1 8 2 . . . Drop 15 | . 8 4 . . 3 Fire 113 | . 81 . . 7 25 Melee . | . . . . . . Ram 8 | . . . . . 8 Kick . | . . . . . . Crush . | . . . . . . Escape Stasis . | . . . . . . Rewire . | . . . . . . Trap 4 | . . . . . 4 Miscellaneous . | . . . . . . Route ------- -11/Scrapyard -10/Materials (discovered 4 exits: [*Mat x2] / [*Min] / [*Sub]) -10/Mines (discovered 2 exits: [*Mat] / *Exi) -10/Exiles -9/Mines -8/Materials (discovered 1 exit: Fac) History --------- Turn | Location | Event 11 | -11/Scrapyard | Discovered new exit (range 14) 130 | -11/Scrapyard | Entered Materials 311 | -10/Materials | Build established: Mutant 424 | -10/Materials | Discovered new exit (range 7) 499 | -10/Materials | Discovered new exit (range 8) 697 | -10/Materials | Discovered new exit (range 8) 1467 | -10/Materials | Discovered new exit (range 9) 1937 | -10/Materials | Entered Mines 2035 | -10/Mines | Discovered new exit (range 14) 2153 | -10/Mines | Identified exit to Exiles 2181 | -10/Mines | Found a hidden stash of uninstalled traps 2226 | -10/Mines | Found a damaged Exp. Sensor Array with a note attached 2228 | -10/Mines | Found Prototype Device 2228 | -10/Mines | Identified Exp. Sensor Array 2253 | -10/Mines | Deemed a non-threat by the Exiles lab entrance 2260 | -10/Mines | Entered Exiles 2260 | -10/Exiles | Found Exiles lab abandoned 2545 | -10/Exiles | Discovered new exit (range 14) 2557 | -10/Exiles | Entered Mines 2575 | -9/Mines | Learned Materials interactive machine intel 2603 | -9/Mines | Discovered new exit (range 14) 2606 | -9/Mines | Learned 2 Materials zone layouts 2628 | -9/Mines | Learned Materials trap positions 2702 | -9/Mines | Assembled infested the area 2707 | -9/Mines | Assisted by a Guerilla fighting off Assembled 2737 | -9/Mines | Core integrity fell below 50% 2764 | -9/Mines | Entered Materials 2764 | -8/Materials | Evolved 4 slots: Propulsion x1, Utility x3 2765 | -8/Materials | Identified exit to Factory 2766 | -8/Materials | Loaded intel: 24 trap records 2767 | -8/Materials | Loaded intel: 19 interactive machine locations 2767 | -8/Materials | Lost 8 parts (1p2n5w) 2966 | -8/Materials | Released all parts (3) 2978 | -8/Materials | Core integrity fell below 50% 2999 | -8/Materials | Lost 7 parts (1n4u2w) 3042 | -8/Materials | Core integrity fell below 20% 3064 | -8/Materials | Self-destructed Last Messages --------------- 02981_ Installed Proton Bomb Trap. 02982_ Dropped Proton Bomb Trap. 02983_ Installed Proton Bomb Trap. 02986_ Dropped Proton Bomb Trap. 02987_ Installed Proton Bomb Trap. 02989_ U-05 Engineer destroyed. 02997_ Door malfunctions. 03000_ Slammed into X-57 Shotgunner. 03000_ X-57 Shotgunner triggered Proton Bomb Trap. 03000_ A bubble of electromagnetic force engulfs the area. 03017_ K-01 Serf cleans the Terminal. 03022_ Connecting with Terminal... 03027_ K-01 Serf cleans the Terminal. 03027_ K-01 Serf cleans the Pressure Siphon. 03028_ Acquired Imp. Signal Interpreter. 03030_ Acquired Machine Analyzer. 03034_ K-01 Serf cleans the Pressure Siphon. 03042_ Acquired Prototype Launcher. 03042_ Identified Adv. EMP Blaster. 03042_ Faulty integration triggers system corruption (+5). Map ----- +----------------------------------------------------+ | ### #???# # ???????# #????+ #?"""?? | | ^ #???# # ???????# #????# #?????? | | T #???# ###+####### ###### ####### | | !!= #???# | | ###%! #???# | | ??#=#####???# "" = | | ??# #???????######### ##/####### "T ###### | | ??# #?###########???# # ????# "" # [! | | ??# #?# """ #???# # """ ??# # !! | | ??# #???"T"?????????# # """ #?# + | | ??# #???????????????# # """ #?# # | | ??# #???????????????#^^^# #?# # | | ??# #???????????????#^^^#! ! #?# # | | ??# #???????????????# #######??# #####+ | | ??# #???????????????# #????????# """ #????? | | ??# #???????????????# #????????# """ #???? | | ### #######+####????# #????????# """ ##### | | ! #????????# """ ^^ | | /!% #????????# ^ ^ | | % =!!! #????????# ^"T" | | %* !! ? ########## ^ | | %= !! ?????# # !]] | | """ """ ??????# # !]] | | """ """???????# %# !] ! | | ! """ """???????# # | | ???????"T"??#@ g | | ???????????# ! # #### | | ??????????# ! ############???## | | ######### ##??????????# #???????????????" | | ????????? #???????????# #??????????????"" | | ?????????? #???????????##########??????????????"" | | ?????????????????????????????????????????????????? | | ?????????????????????????????????????????????????? | | ""???????????????????????????????????????????????? | | R????????????????????????????????????????????????? | | ""???????????????????????????????????????????????? | | ?????????????????????????????????????????????????? | | ??????????????????????????????????????????T??????? | | ?????????????????????????????????????????????????? | | ?????????????????????????????????????????????????? | | ????????????????????????????????????????????????T? | | ?????????????????????????????????????????????????? | | ?????????????????????????????????????????????????? | | ?????????????????????????????????????????????????? | | ?????????????????????????????????????????????????? | | ?????????????????????????????????????????????????? | | ?????????????????????????????????????????????????? | | ?????????????????????????????????????????"?"?????? | | ?????????????????????????????????????????"R"?????? | | ?????????????????????????????????????????"""?????? | +----------------------------------------------------+ Best States ------------- Heat Dissipation 31 Energy Generation 10 Energy Capacity 250 Matter Stores 300 Matter Capacity 300 Sight Range 16 Robot Scan Range 20 Terrain Scan Density 10 Armor Coverage 450 Evasion (%) 50 Recoil Reduction 2 Item Schematics ----------------- None Robot Schematics ------------------ None Fabricated ------------ Nothing Repaired ---------- Nothing Alien Tech Used ----------------- None Achievements -------------- None Challenges ------------ None Game ------ Seed NuclearEtherialCarapace Manual? 0 Play Time 00:20:39 Cumulative 28.7 hours Start 2025.10.09 @ 20:42:30 End 2025.10.09 @ 20:59:26 Sessions 1 Manual Loads 0 Difficulty Rogue Special Mode None Game No. 77 Rogue 70 Adventurer 7 Explorer 0 Win Type - Total 0 Types 0/0/0/0/0/0/0/0/0/0 Lore% 5 Gallery% 26 Achievement% 26 Wizard Run 0 Options --------- Layout 0 ASCII 0 Keyboard 1 Movement Vi Keybinds 0 Fullscreen 1 Font 18/SmallcapsGlow Map View 76x50 Zoom Use 0% Tactical HUD 1 Map Filters NONE Filters NONE Steam X RUN: 7ac7a78f-c7dc-49de-a059-cb7a56e1f687